Cogmind - Beta 9.6 @@@ ROGUE MODE // 2020.05.17 @ 17:25:38 Player: cl0y-b1cks Result: Destroyed by L-31 Rogue with Katana Performance ------------- Evolutions (0) 0 Regions Visited (4) 800 Robots Destroyed (10) 50 Value Destroyed (251) 251 Prototype IDs (1) 20 Alien Tech Used (0) 0 Bonus (300) 300 TOTAL SCORE: 1421 Bonus ------- Aligned with FarCom 300 Cogmind --------- Core Integrity 0/250 Matter 267/300 Energy 100/100 System Corruption 0% Temperature Cool (0) Movement Core (550) Ox10 Location -9/Mines Parts ------- > --- POWER (1) -------- (None) > --- PROPULSION (2) --- (None) > --- UTILITY (2) ------ High-capacity Storage Unit Signal Interpreter > --- WEAPON (2) ------- (None) > --- INVENTORY (12) --- Large Storage Unit Humpback Large Battery (300) High-capacity Matter Pod (200) Light Armor Plating Peak State ------------ > --- POWER ------------ Light Ion Engine > --- PROPULSION ------- Wheel Wheel > --- UTILITY ---------- High-capacity Storage Unit Signal Interpreter > --- WEAPON ----------- YOLO Cannon > --- INVENTORY -------- Light Ion Engine Hover Unit Large Storage Unit Humpback Large Battery Medium Matter Pod Medium Matter Pod Light Armor Plating Medium Laser Mining Laser [Rating: 26] Favorites ----------- Power Light Ion Engine Engine Light Ion Engine Propulsion Wheel Wheel Wheel Hover Unit Hover Unit Utility Signal Interpreter Storage High-capacity Storage Unit Processor Signal Interpreter Weapon Medium Laser Energy Gun Medium Laser Energy Cannon YOLO Cannon Special Weapon Mining Laser Build | -11 -10 -10 -10 -9 ------- Run | Scr Mat Min Exi Min Slots Evolved . | . . . . . Power . | . . . . . Propulsion . | . . . . . Utility . | . . . . . Weapon . | . . . . . Parts Attached 16 | 4 2 . 3 7 Power 2 | 1 . . . 1 Engine 2 | 1 . . . 1 Core . | . . . . . Reactor . | . . . . . Propulsion 3 | 2 . . . 1 Treads . | . . . . . Leg . | . . . . . Wheel 2 | 2 . . . . Hover 1 | . . . . 1 Flight . | . . . . . Utility 4 | . 2 . 2 . Device . | . . . . . Storage 3 | . 1 . 2 . Processor 1 | . 1 . . . Hackware . | . . . . . Protection . | . . . . . Artifact . | . . . . . Weapon 7 | 1 . . 1 5 Energy Gun 3 | 1 . . . 2 Energy Cannon 3 | . . . 1 2 Ballistic Gun . | . . . . . Ballistic Cannon . | . . . . . Launcher . | . . . . . Special Weapon 1 | . . . . 1 Impact Weapon . | . . . . . Slashing Weapon . | . . . . . Piercing Weapon . | . . . . . Special Melee Weapon . | . . . . . Unidentified Prototypes 1 | . . . 1 . Parts Lost 8 | . . . . 8 Power 2 | . . . . 2 Propulsion 3 | . . . . 3 Utility . | . . . . . Weapon 3 | . . . . 3 Highest Loss Streak 6 | . . . . 6 Average Slot Usage (%) 82 | . 71 85 84 80 Engine 13 | . 14 14 14 11 Wheel 24 | . 28 28 28 18 Hover 2 | . . . . 7 Storage 13 | . 10 14 13 14 Processor 13 | . 4 14 14 14 Energy Gun 8 | . 14 14 10 6 Energy Cannon 4 | . . . 3 7 Naked Turns . | . . . . . Heaviest Build 53 | 5 21 21 53 53 Greatest Support 20 | 20 20 20 20 20 Greatest Overweight (x) 10 | . 1 1 2 10 Average Overweight (x) 1 | . . 1 1 2 Largest Inventory Capacity 12 | 4 10 10 12 12 Average Capacity 11 | 4 8 10 11 12 Most Carried 12 | . 3 5 11 12 Average Carried 8 | . . 4 8 9 Final Capacity 12 | 4 10 10 12 12 Final Carried 11 | . 3 5 11 6 Class Distribution -------------------- 100% | Mutant Dominant Class ---------------- Mutant | -10/Materials Mutant | -10/Mines Mutant | -10/Exiles Mutant | -9/Mines Resources | -11 -10 -10 -10 -9 ----------- Run | Scr Mat Min Exi Min Matter Collected 603 | 225 30 96 29 223 Remotely . | . . . . . Salvage Created 87 | . . . . 87 Parts 8 | . . . . 8 Haulers Intercepted . | . . . . . Recyclers Shooed . | . . . . . Parts Field Recycled . | . . . . . Retrieved Matter . | . . . . . Parts Self-Destructed . | . . . . . Prevented . | . . . . . Kills | -11 -10 -10 -10 -9 ------- Run | Scr Mat Min Exi Min Combat Hostiles Destroyed 10 | . . . . 10 Cannons 3 | . . . . 3 AOE 7 | . . . . 7 Classes Destroyed 3 | . . . . 3 Swarmer 8 | . . . . 8 Grunt 1 | . . . . 1 Duelist 1 | . . . . 1 Best Kill Streak 6 | . . . . 6 Combat Bots Only 6 | . . . . 6 Max Kills in Single Turn 2 | . . . . 2 Gunslinging . | . . . . . Exploded 2 | . . . . 2 Melee . | . . . . . Uniques/NPCs Destroyed . | . . . . . Combat | -11 -10 -10 -10 -9 -------- Run | Scr Mat Min Exi Min Damage Taken 995 | . . . . 995 Core 276 | . . . . 276 Absorbed by Shields . | . . . . . Core Remaining (%) 100 | 100 . . . . Volleys Fired 18 | . 1 1 . 16 Largest 1 | . 1 1 . 1 Hottest 100 | . 50 50 . 100 Shots Fired 18 | . 1 1 . 16 Gun 4 | . 1 1 . 2 Cannon 13 | . . . . 13 Launcher . | . . . . . Special 1 | . . . . 1 Kinetic . | . . . . . Thermal 18 | . 1 1 . 16 Explosive . | . . . . . Electromagnetic . | . . . . . Robot Hit Streak 1 | . . . . 1 Robot Miss Streak 3 | . 1 2 . 3 Penetration Max . | . . . . . Secondary Targets . | . . . . . Shots Hit Robots 3 | . . . . 3 Core Hits 12 | . . . . 12 Critical Hits . | . . . . . Critical Kills . | . . . . . Critical Parts Destroyed . | . . . . . Melee Attacks . | . . . . . Impact . | . . . . . Slashing . | . . . . . Piercing . | . . . . . Sneak Attacks . | . . . . . Combat Hostiles . | . . . . . Follow-up Attacks . | . . . . . Damage Inflicted 1243 | . . . . 1243 Guns 24 | . . . . 24 Cannons 446 | . . . . 446 Explosions 735 | . . . . 735 Melee . | . . . . . Ramming 14 | . . . . 14 Kinetic . | . . . . . Thermal 1229 | . . . . 1229 Explosive . | . . . . . Electromagnetic . | . . . . . Impact . | . . . . . Slashing . | . . . . . Piercing . | . . . . . Highest Corruption . | . . . . . Average Corruption . | . . . . . Corruption Purged . | . . . . . Overload Shots . | . . . . . Overflow Damage 164 | . . . . 164 Projectiles 112 | . . . . 112 Explosions 52 | . . . . 52 Melee . | . . . . . Knockbacks 1 | . . . . 1 Impact 1 | . . . . 1 Kinetic . | . . . . . Secondary . | . . . . . Self-Inflicted Damage 109 | . . . . 109 Shots 2 | . . . . 2 Rammed 3 | . . . . 3 Targets Rammed 3 | . . . . 3 Kicked . | . . . . . Crushed . | . . . . . Highest Temperature 73 | . 10 10 . 73 Average Temperature 26 | . 7 7 . 27 Received Heat Transfer 96 | . . . . 96 Siege Activations . | . . . . . Robots Corrupted . | . . . . . Combat Hostiles . | . . . . . Parts Fried . | . . . . . Impact Corruptions . | . . . . . Robots Melted . | . . . . . Combat Hostiles . | . . . . . Parts Melted . | . . . . . Heat Transferred 1324 | . . . . 1324 Parts Sabotaged . | . . . . . Parts Stolen . | . . . . . Parts Stripped . | . . . . . Power Chain Reactions . | . . . . . Missiles Intercepted . | . . . . . Alert | -11 -10 -10 -10 -9 ------- Run | Scr Mat Min Exi Min Peak Influence 360 | . . . . 360 Average Influence 151 | . . . . 201 Maximum Alert Level 1 | . . . . 1 Low Security (%) 80 | 100 100 100 . 74 Level 1 19 | . . . . 25 Level 2 . | . . . . . Level 3 . | . . . . . Level 4 . | . . . . . Level 5 . | . . . . . High Security . | . . . . . Max Security . | . . . . . Squads Dispatched 1 | . 1 . . . Investigation . | . . . . . Extermination . | . . . . . Reinforcement 1 | . 1 . . . Assault . | . . . . . Garrison . | . . . . . Intercept . | . . . . . Construction Impeded . | . . . . . Haulers Reinforced . | . . . . . Stealth | -11 -10 -10 -10 -9 --------- Run | Scr Mat Min Exi Min Distress Signals . | . . . . . Communications Jammed . | . . . . . Distress Signals . | . . . . . Times Spotted 12 | . 1 2 . 9 Peak Tracking Total 4 | . 1 1 . 4 Tactical Retreats . | . . . . . Traps | -11 -10 -10 -10 -9 ------- Run | Scr Mat Min Exi Min Traps Triggered . | . . . . . Indirectly . | . . . . . Trap Hack Attempts . | . . . . . Triggered . | . . . . . Disarmed . | . . . . . Reprogrammed . | . . . . . Reused . | . . . . . Traps Extracted . | . . . . . Installed . | . . . . . Triggered . | . . . . . Machines | -11 -10 -10 -10 -9 ---------- Run | Scr Mat Min Exi Min Machines Disabled 9 | . . . . 9 Max in Single Turn 4 | . . . . 4 Machines Sabotaged . | . . . . . Garrisons Compromised . | . . . . . Overloaded Fab Kills . | . . . . . Fab Network Shutdowns . | . . . . . Hacking | -11 -10 -10 -10 -9 --------- Run | Scr Mat Min Exi Min Machines Accessed 1 | . . . 1 . Terminals . | . . . . . Fabricators . | . . . . . Repair Stations . | . . . . . Recycling Units . | . . . . . Scanalyzers . | . . . . . Garrison Access . | . . . . . Total Hacks 23 | . . . 23 . Successful 23 | . . . 23 . Failed . | . . . . . Catastrophic . | . . . . . Database Lockouts . | . . . . . Manual 1 | . . . 1 . Terminals . | . . . . . Fabricators . | . . . . . Repair Stations . | . . . . . Recycling Units . | . . . . . Scanalyzers . | . . . . . Garrison Access . | . . . . . Terminal Hacks 23 | . . . 23 . Record 23 | . . . 23 . Fabricator Hacks . | . . . . . Repair Station Hacks . | . . . . . Recycling Unit Hacks . | . . . . . Scanalyzer . | . . . . . Garrison Access Hacks . | . . . . . Unauthorized Hacks . | . . . . . Terminals . | . . . . . Fabricators . | . . . . . Repair Stations . | . . . . . Recycling Units . | . . . . . Scanalyzers . | . . . . . Garrison Access . | . . . . . Data Cores Recovered . | . . . . . Used . | . . . . . Hacking Detections . | . . . . . Full Trace Events . | . . . . . Feedback Events . | . . . . . Feedback Blocked . | . . . . . Robot Schematics Acquired . | . . . . . Robots Built . | . . . . . Matter . | . . . . . Time . | . . . . . Total Robot Build Rating . | . . . . . Part Schematics Acquired . | . . . . . Parts Built . | . . . . . Matter . | . . . . . Time . | . . . . . Total Part Build Rating . | . . . . . Parts Repaired . | . . . . . Time . | . . . . . Parts Recycled . | . . . . . Recycled Matter . | . . . . . Retrieved Matter . | . . . . . Retrieved Components . | . . . . . Parts Scanalyzed . | . . . . . Part Schematics Acquired . | . . . . . Parts Damaged . | . . . . . Bothacking | -11 -10 -10 -10 -9 ------------ Run | Scr Mat Min Exi Min Used RIF Installer . | . . . . . Robots Hacked . | . . . . . Non-combat . | . . . . . Combat . | . . . . . Robot Hacks Applied . | . . . . . Relay Couplers Released . | . . . . . Robots Rewired . | . . . . . Allies Hacked . | . . . . . Hacks Repelled . | . . . . . Allies | -11 -10 -10 -10 -9 -------- Run | Scr Mat Min Exi Min Total Allies . | . . . . . Largest Group . | . . . . . Highest-Rated Group . | . . . . . Highest-Rated Ally . | . . . . . Total Orders . | . . . . . Ally Attacks . | . . . . . Total Damage . | . . . . . Kills . | . . . . . Allies Corrupted . | . . . . . Allies Melted . | . . . . . Intel | -11 -10 -10 -10 -9 ------- Run | Scr Mat Min Exi Min Robot Analysis Total . | . . . . . Derelict Logs Recovered . | . . . . . Drone Launches . | . . . . . Drone Recoveries . | . . . . . Exploration | -11 -10 -10 -10 -9 ------------- Run | Scr Mat Min Exi Min Turns Passed 1784 | 35 68 128 843 710 Spaces Moved 1589 | 42 69 108 900 470 Core 15 | 14 . . . 1 Treads . | . . . . . Legs . | . . . . . Wheels 1574 | 28 69 108 900 469 Hover . | . . . . . Flight . | . . . . . Fastest Speed 50 | 50 80 90 80 100 Average Speed 96 | 70 86 90 92 109 Slowest Speed 550 | 80 90 90 100 550 Overloaded Moves . | . . . . . Propulsion Burnouts . | . . . . . Robots Hopped . | . . . . . Cave-ins Triggered . | . . . . . Exploration Rate (%) 44 | 4 18 37 93 71 Regions Visited 4 Branch Regions 3 Pre-discovered Areas 2 | . . 1 1 . Known Exits Taken 3 | . 1 1 1 . Unknown Exits Taken 1 | 1 . . . . Scrap Searched 2 | . . 1 . 1 Spaces Dug 12 | . . . . 12 Terrain Destroyed 142 | . . . . 142 Melee . | . . . . . Projectile 7 | . . . . 7 AOE 135 | . . . . 135 Actions | -11 -10 -10 -10 -9 --------- Run | Scr Mat Min Exi Min Total 1792 | 45 75 137 911 624 Wait 146 | . 1 27 . 118 Move 1585 | 41 68 107 899 470 Hop . | . . . . . Pick Up 15 | . 3 2 7 3 Fast Attach 8 | 4 2 . 2 . Attach 7 | . . . . 7 Detach 4 | . . . 1 3 Swap 1 | . . . 1 . Drop 5 | . . . 1 4 Fire 18 | . 1 1 . 16 Melee . | . . . . . Ram 3 | . . . . 3 Kick . | . . . . . Crush . | . . . . . Escape Stasis . | . . . . . Rewire . | . . . . . Trap . | . . . . . Miscellaneous . | . . . . . Route ------- -11/Scrapyard -10/Materials -10/Mines -10/Exiles -9/Mines History --------- Turn | Location | Event 19 | -11/Scrapyard | Discovered new exit (range 14) 36 | -11/Scrapyard | Entered Materials 72 | -10/Materials | Discovered new exit (range 11) 86 | -10/Materials | Met 8R-AWN 104 | -10/Materials | Identified exit to Mines 104 | -10/Materials | Entered Mines 105 | -10/Mines | Followed 8R-AWN into the Mines 210 | -10/Mines | Learned location of Storage (-8) 227 | -10/Mines | Discovered new exit (range 5) 231 | -10/Mines | Identified exit to Exiles 232 | -10/Mines | Entered Exiles 259 | -10/Exiles | Welcomed by 8R-AWN 274 | -10/Exiles | Met EX-HEX 318 | -10/Exiles | Build established: Mutant 360 | -10/Exiles | Met EX-DEC 399 | -10/Exiles | Visited The Gauntlet 553 | -10/Exiles | Learned location of Zion (-7) 645 | -10/Exiles | Discovered new exit (range 12) 707 | -10/Exiles | Met EX-BIN 743 | -10/Exiles | Aligned with FarCom system 744 | -10/Exiles | Given EX-Vault access code 820 | -10/Exiles | Opened EX-Vault 856 | -10/Exiles | Found Prototype Energy Cannon 856 | -10/Exiles | Identified YOLO Cannon 877 | -10/Exiles | Warned to stay clear of 0b10 Research branches 1072 | -10/Exiles | Identified exit to Mines 1075 | -10/Exiles | Left Exiles lab with YOLO Cannon 1075 | -10/Exiles | Entered Mines 1087 | -9/Mines | Met a Derelict bent on vengeance 1769 | -9/Mines | Core integrity fell below 50% 1781 | -9/Mines | Core integrity fell below 20% 1785 | -9/Mines | Destroyed by L-31 Rogue with Katana Last Messages --------------- 01480_ Q6-O48(g): "VENGEANCE!" 01727_ A derelict is hurriedly installing traps. 01729_ L2-MMP(g): "Hehe, this'll put a wrench in their mining defense operations..." 01729_ L2-MMP(g) slips into the shadows. 01741_ U-05 Engineer builds a Wall. 01745_ Lgt. Ion Engine destroyed. 01755_ Wheel destroyed. 01758_ Hover Unit destroyed. 01758_ Med. Laser destroyed. 01760_ Mining Laser destroyed. 01767_ U-05 Engineer lays Concrete. 01770_ U-05 Engineer builds a Wall. 01774_ U-05 Engineer lays Concrete. 01775_ YOLO Cannon destroyed. 01775_ U-05 Engineer lays Concrete. 01775_ Slammed into L-31 Rogue. 01777_ U-05 Engineer builds a Wall. 01781_ U-05 Engineer lays Concrete. 01784_ U-05 Engineer builds a Wall. Map ----- +----------------------------------------------------+ | ?# #####?????????????????????????????????????????? | | ?# #?????????????????????????????????????????? | | ?#### #?????????????????????????????????????????? | | ????# #?????????????????????????????????????????? | | ????# #?????????????????????????????????????????? | | ????# #?????????????????????????????????????????? | | ????# #?????????????????????????????????????????? | | ????# #?????????????????????????????????????????? | | ????# #?????????????????????????????????????????? | | ????# #?????????????????????????????????????????? | | ##### #???????????????? ????????????????????????? | | #???????????????? #####???????????????????? | | ##### #???????????????? "";"#???????????????????? | | ????# #???????????????? ???????????????????? | | ????# #????????????????""#;;####????????????????? | | ????# #?????????##????? " u ^ ##???????????????? | | ????# #?????????# ????## #; #???????????????? | | ????# #?????????# ???? # #???????????????? | | ???## ##????????# ???# # #???????????????? | | ??## ###???????# ??## # ????????? | | ?## ##??????# ##; ^ #???????????????? | | ## ######??# # ; ; #???????????????? | | # #??? ; ; ;;;#####???????????????? | | ## ## #????# #??????????????????? | | #### ## ######;;; ;;; #??????????????????? | | ##??# ## k@; # #??????????????????? | | ##???# ##########;g l## #??????????????????? | | ## ####????# #????????## ### #??????????????????? | | ?# ######### #???????## ## #??????????????????? | | ?# [ #??????## ##???????#####?????? | | ############ ######## ##?????## ##????? | | ## ## ###??## ##???? | | ## ##### ### #### ###?? | | "" ## #???# #?# ### ## ##? | | #???# #?# ##?## #? | | ####???# ## ????# ### #? | | #??????# ## #????## ##?## ## | | #??????# ### #??????## ##???# # | | #??????# #?##????????## #???## # | | #??????# #????????????## ##??## ## | | #??????# #??????s??????####??## ##? | | #??????# #??????s??????????### ##?? | | ##" ######??????# #???????s?????##### ##?? | | ### #???????????# #????????????## ##? | | # #???????????# #????????????# #? | | ##??????????# ????????????# #? | | #??????????###????????????# #? | | #?????????????????????????# ##? | | #?????????????????????????## ###?? | | ###??????????????????????????## ##???? | +----------------------------------------------------+ Best States ------------- Heat Dissipation 25 Energy Generation 10 Energy Capacity 125 Matter Stores 300 Matter Capacity 300 Sight Range 16 Terrain Scan Density 10 Evasion (%) 44 Item Schematics ----------------- None Robot Schematics ------------------ None Fabricated ------------ Nothing Alien Tech Used ----------------- None Achievements -------------- None Challenges ------------ None Game ------ Seed ComponentNovaReconfigurator Manual? 0 Play Time 00:17:28 Cumulative 116.7 hours Start 2020.05.17 @ 15:39:53 End 2020.05.17 @ 17:25:38 Sessions 3 Manual Loads 0 Difficulty Rogue Special Mode None Game No. 208 Rogue 208 Adventurer 0 Explorer 0 Win Type - Total 0 Types 0/0/0/0/0/0/0 Lore% 23 Gallery% 46 Achievement% 30 Wizard Run 0 Options --------- ASCII 0 Keyboard 1 Movement Numpad Keybinds 0 Fullscreen 2 Font 18/SmallcapsGlow Map View 76x50 Tactical HUD 1 Map Filters NONE Filters NONE Steam 1 RUN: 8a20c44a-9359-4ecb-845d-3290438f0c2b